bitfinex/quotes_ETHUSD_20240922
["timestamp","ask_amount","ask_price","bid_price","bid_amount"]
[1727043218039,2.2863,2540.3,2540.2,3.93669]
[1727043218209,2.2863,2540.3,2540.1,3.93676]
[1727043218405,2.42458766,2540.3,2540.2,3.93669]
[1727043218831,0.13828766,2540.3,2540.2,3.93669]
[1727043219030,0.13828766,2540.3,2540.2,4.48669]
[1727043219340,2.3392348,2540.6,2540.5,3.93623]
[1727043219542,2.47761039,2540.6,2540.5,3.93623]
[1727043220101,0.19131039,2540.6,2540.5,0.787271]
[1727043220298,0.19131039,2540.6,2540.5,10.73521423]
[1727043220531,0.0529348,2540.6,2540.5,10.656501]
[1727043221232,0.0529348,2540.6,2540.5,8.273501]
[1727043223225,0.0529348,2540.6,2540.5,10.656501]
[1727043225224,0.0529348,2540.6,2540.2,3.93659]
[1727043225423,2.3392348,2540.6,2540.2,3.93659]
[1727043225963,0.13900976,2540.5,2540.1,3.93673]
[1727043226266,0.13900976,2540.5,2539.9,3.93706]
[1727043226565,0.13900976,2540.5,2539.8,3.93729]
[1727043226876,0.13900976,2540.5,2539.9,3.93705]
[1727043227030,4.07529976,2540.5,2539.8,1.0651424]
[1727043227232,4.07529976,2540.5,2539.5,3.93767]
[1727043227233,3.93655,2540.3,2539.5,3.93767]
[1727043227539,3.93655,2540.3,2539.4,3.93791]
[1727043227540,2.4853,2540.2,2539.4,3.93791]
[1727043227736,0.13900976,2540.1,2539.5,3.93773]
[1727043228495,0.13900976,2540.1,2539.5,3.93767]
[1727043228655,0.13900976,2540.1,2539.8,3.93721]
[1727043228851,0.13900976,2540.1,2539.9,0.393721]
[1727043229089,0.13900976,2540.1,2540.0,4.56573089]
[1727043229389,2.4853,2540.5,2540.1,3.0]
[1727043229750,0.13900976,2540.4,2539.9,3.393721]
[1727043229985,0.13900976,2540.4,2539.9,7.330841]
[1727043230302,0.13900976,2540.4,2540.0,1.1268051]
[1727043230980,0.13900976,2540.4,2540.3,0.55]
[1727043231292,0.0529348,2540.6,2540.3,4.48654]
[1727043231589,0.13900976,2540.5,2540.4,7.564967]
[1727043231770,0.13900976,2540.5,2540.4,3.55]
[1727043231957,0.13900976,2540.5,2540.4,4.692295]
[1727043232155,0.13900976,2540.5,2540.4,5.628675]
[1727043232451,0.0529348,2540.6,2540.5,7.48623]
[1727043233087,0.0529348,2540.6,2540.5,3.0]
[1727043233294,0.0529348,2540.6,2540.5,6.93623]
[1727043233463,0.0529348,2540.6,2540.5,8.6877105]
[1727043234098,0.0529348,2540.6,2540.5,11.1654105]
[1727043234765,0.0529348,2540.6,2540.5,14.43111578]
[1727043235104,0.0529348,2540.6,2540.5,11.1654105]
[1727043235390,0.0529348,2540.6,2540.5,14.43111578]
[1727043236967,0.0529348,2540.6,2540.5,11.1654105]
[1727043237518,0.0529348,2540.6,2540.5,3.93623]
[1727043237669,0.0529348,2540.6,2540.4,3.93628]
[1727043237869,0.0529348,2540.6,2540.5,3.93623]
[1727043238104,0.0529348,2540.6,2540.4,3.93628]
[1727043238309,0.0529348,2540.6,2540.5,3.93623]
[1727043238522,0.0529348,2540.6,2540.5,0.787251]
[1727043238702,0.0529348,2540.6,2540.2,7.87322]
[1727043238872,0.0529348,2540.6,2540.4,3.93627]
[1727043239179,0.0529348,2540.6,2540.0,1.1268051]
[1727043239379,0.0529348,2540.6,2540.2,3.93669]
[1727043239780,0.0529348,2540.6,2540.4,3.93636]
[1727043240209,0.0529348,2540.6,2540.1,3.93674]
[1727043240435,0.0529348,2540.6,2539.3,3.93806]
[1727043240436,3.93678,2540.2,2539.5,3.93777]
[1727043240610,3.93678,2540.2,2538.7,4.93982466]
[1727043240611,3.93732,2539.8,2538.7,6.41657]
[1727043240808,2.4853,2539.9,2539.2,3.93815]
[1727043241132,6.42249,2539.9,2539.2,7.8763]
[1727043241349,6.42249,2539.9,2538.8,0.641657]
[1727043241350,3.93732,2539.8,2539.0,3.93843]
[1727043241626,2.4853,2539.9,2539.2,3.93815]
[1727043241813,2.4853,2539.9,2539.4,3.93783]
[1727043242011,2.4853,2539.9,2539.4,4.725433]
[1727043242316,2.4853,2539.9,2539.6,3.93751]
[1727043242514,2.4387,2540.3,2539.7,3.93738]
[1727043242820,2.4387,2540.3,2539.6,7.87504]
[1727043243112,2.4387,2540.3,2539.6,3.93751]
[1727043243317,2.4387,2540.3,2540.0,3.93688]
[1727043243722,0.0529348,2540.6,2540.3,4.48641]
[1727043243924,0.0529348,2540.6,2540.5,0.55]
[1727043244420,0.0529348,2540.6,2540.2,6.93664]
[1727043244421,0.18813114,2540.6,2540.3,0.55]
[1727043244915,0.0529348,2540.6,2540.3,0.55]
[1727043245121,0.0529348,2540.6,2540.5,0.55]
[1727043245338,0.0529348,2540.6,2540.5,4.48623]
[1727043245626,0.18813114,2540.6,2540.5,3.55]
[1727043245923,0.18813114,2540.6,2540.5,0.55]
[1727043246637,0.18813114,2540.6,2540.2,3.0]
[1727043246979,0.18813114,2540.6,2539.6,0.693751]
[1727043246980,0.13519634,2540.6,2539.6,0.693751]
[1727043247110,3.93647,2540.4,2539.2,2.477]
[1727043247285,2.4387,2540.1,2539.5,3.93777]
[1727043247488,2.4387,2540.1,2539.2,6.41517]
[1727043247687,2.4387,2540.1,2538.8,7.057477]
[1727043247688,0.13491304,2540.0,2538.8,7.057477]
[1727043247943,3.93716,2539.9,2539.2,3.93812]
[1727043248230,3.93702,2540.0,2539.3,3.938]
[1727043248531,2.4719375,2540.1,2539.5,3.93763]
[1727043248691,0.13491304,2539.9,2539.5,3.93763]
[1727043248891,2.4719375,2540.1,2539.7,3.93736]
[1727043249135,2.4719375,2540.1,2539.8,4.48731]
[1727043249300,2.4719375,2540.1,2540.0,0.55]
[1727043249709,2.4719375,2540.1,2539.9,3.0]
[1727043249932,2.4719375,2540.1,2539.5,3.0]
[1727043250224,2.4719375,2540.1,2539.6,3.93751]
[1727043250523,2.4719375,2540.1,2539.6,7.87505]
[1727043250739,2.4719375,2540.1,2539.6,5.025015]
[1727043251037,2.4719375,2540.1,2539.6,8.962545]
[1727043251249,2.4719375,2540.1,2539.6,5.025015]
[1727043251541,2.4719375,2540.1,2539.6,1.087505]
[1727043251714,6.4088275,2540.1,2539.5,0.55]
[1727043252131,6.4088275,2540.1,2539.2,3.93817]
[1727043252132,3.93718,2539.9,2539.3,3.0]
[1727043252446,10.3457875,2540.1,2539.3,6.93807]
[1727043252642,6.4088275,2540.1,2539.5,3.0]
[1727043252843,2.4719375,2540.1,2539.3,3.93798]
[1727043253145,2.4719375,2540.1,2539.4,3.44937838]
[1727043253351,2.4719375,2540.1,2539.6,3.0]
[1727043253495,2.4719375,2540.1,2539.6,6.93762]
[1727043253703,2.4719375,2540.1,2539.6,3.0]
[1727043253909,2.4719375,2540.1,2539.4,3.0]
[1727043254111,2.4719375,2540.1,2538.7,3.93895]
[1727043254112,3.93809,2539.3,2538.7,3.93895]
[1727043254343,2.4387,2539.2,2538.7,0.393895]
[1727043254635,2.4387,2539.2,2538.8,3.93878]
[1727043254844,2.4387,2539.2,2538.6,7.8782]
[1727043255055,2.4387,2539.2,2538.7,3.93901]
[1727043255202,2.4387,2539.2,2538.8,3.93885]
[1727043255405,2.4387,2539.2,2538.9,0.393885]
[1727043255605,2.4387,2539.2,2538.7,3.0]
[1727043257123,2.4387,2539.2,2538.9,3.93862]
[1727043257325,2.4387,2539.2,2538.8,0.07877053]
[1727043257535,2.3844,2539.9,2539.4,3.93789]
[1727043257702,2.3844,2539.9,2539.2,3.0]
[1727043257703,4.07129241,2539.8,2539.2,6.93815]
[1727043257911,0.13389241,2539.8,2539.4,3.0]
[1727043258133,0.13389241,2539.8,2539.3,3.0]
[1727043258726,0.13389241,2539.8,2539.2,3.693815]
[1727043258944,2.3844,2539.7,2539.4,3.0]
[1727043259129,2.3844,2539.7,2539.4,6.93788]
[1727043259329,0.13389241,2539.6,2539.4,4.16484468]
[1727043260418,0.13389241,2539.6,2539.4,1.16484468]
[1727043260627,4.07152241,2539.6,2539.2,3.0]
[1727043260811,4.07152241,2539.6,2539.1,3.0]
[1727043261606,0.13389241,2539.6,2539.1,6.93832]
[1727043262332,0.13389241,2539.6,2539.1,3.0]
[1727043262956,0.13389241,2539.6,2539.3,6.93809]
[1727043263104,0.13389241,2539.6,2539.5,3.93778]
[1727043263306,0.0332375,2540.0,2539.5,4.01652763]
[1727043263307,2.4176375,2540.0,2539.5,4.01652763]
[1727043263505,0.13389241,2539.9,2539.5,3.93778]
[1727043263812,3.93763,2539.6,2539.0,3.0]
[1727043264106,3.93763,2539.6,2538.9,3.93855]
[1727043264107,0.13284704,2539.5,2539.1,3.93838]
[1727043264310,3.93766,2539.6,2539.1,3.93838]
[1727043264513,0.13284704,2539.5,2538.7,3.93898]
[1727043264727,6.32192,2539.7,2538.7,3.93898]
[1727043264728,6.32192,2539.7,2539.1,3.93827]
[1727043264913,0.13284704,2539.6,2539.1,3.93827]
[1727043265451,0.13284704,2539.6,2538.9,3.0]
[1727043265452,3.93795,2539.4,2538.8,0.621468]
[1727043265772,3.93795,2539.4,2538.6,3.93913]
[1727043265975,0.13284704,2539.3,2538.8,3.93886]
[1727043266477,0.13284704,2539.3,2538.9,3.0]
[1727043267139,0.13284704,2539.3,2538.9,6.9387]
[1727043267341,3.93802,2539.4,2538.9,3.0]
[1727043267551,0.13284704,2539.3,2538.9,3.0]
[1727043267970,4.07093704,2539.3,2538.7,6.93901]
[1727043268164,3.93856,2539.0,2538.4,3.93938]
[1727043268473,3.93856,2539.0,2538.0,6.21578]
[1727043268474,2.3844,2538.8,2538.2,3.93964]
[1727043268675,3.93872,2538.9,2538.0,3.94002]
[1727043268676,2.3844,2538.4,2538.0,3.94002]
[1727043268886,2.3844,2538.4,2538.1,3.93992]
[1727043269090,3.93878,2538.9,2538.2,3.93979]
[1727043269091,0.13267051,2538.3,2538.2,3.93979]
[1727043269240,0.13267051,2538.3,2538.2,4.01857825]
[1727043269577,3.93827,2539.2,2538.5,3.93931]
[1727043269739,2.3844,2539.0,2538.4,3.93948]
[1727043269939,6.32299,2539.0,2538.5,0.393948]
[1727043270274,6.32299,2539.0,2538.4,3.93948]
[1727043270275,0.13267051,2538.9,2538.4,3.93948]
[1727043270593,0.13267051,2538.9,2538.4,3.93946]
[1727043270884,0.13267051,2538.9,2538.6,3.93905]
[1727043271101,0.13267051,2538.9,2538.7,0.07877652]
[1727043271385,3.0,2539.8,2538.7,3.93892]
[1727043271386,2.3844,2539.1,2538.7,3.93892]
[1727043271580,4.07124051,2539.0,2538.4,3.0]
[1727043271739,0.13267051,2539.0,2538.7,3.9389]
[1727043271939,0.13267051,2539.0,2538.8,3.93885]
[1727043272775,0.13267051,2539.0,2538.5,4.633133]
[1727043272964,6.32295,2539.1,2538.6,3.0]
[1727043273173,0.13267051,2539.0,2538.6,3.0]
[1727043273586,3.93874,2538.9,2538.4,3.0]
[1727043273753,2.3465,2539.0,2538.1,3.93985]
[1727043273958,2.3465,2538.6,2538.2,3.93966]
[1727043274194,2.3465,2538.6,2538.1,4.3732352]
[1727043274496,0.13267051,2538.5,2538.1,4.3732252]
[1727043274796,0.13267051,2538.5,2538.1,8.3130852]
[1727043275000,0.13267051,2538.5,2538.1,4.3732252]
[1727043275183,0.13267051,2538.5,2538.0,3.94008]
[1727043275494,0.13267051,2538.5,2538.1,3.93992]
[1727043275914,0.13267051,2538.5,2538.3,3.93964]
[1727043276074,0.13267051,2538.5,2538.4,4.56826081]
[1727043276259,0.13267051,2538.5,2538.4,7.48948]
[1727043276455,2.3465,2539.2,2538.8,3.0]
[1727043276681,2.3465,2539.2,2539.0,3.93854]
[1727043276995,3.93781,2539.5,2538.7,3.93886]
[1727043276996,0.13267051,2539.1,2538.7,3.93886]
[1727043277177,6.28437,2539.5,2538.8,3.93886]
[1727043277378,3.93809,2539.3,2538.9,3.0]
[1727043277580,3.93809,2539.3,2538.8,3.93886]
[1727043277581,3.93857,2539.0,2538.4,5.321882]
[1727043277765,0.13267051,2538.9,2538.5,3.0]
[1727043277959,6.28504,2539.1,2538.6,3.93915]
[1727043278155,0.13267051,2539.0,2538.6,3.93915]
[1727043278608,0.13267051,2539.0,2538.5,3.0]
[1727043278609,4.07123051,2539.0,2538.5,3.0]
[1727043278771,4.07123051,2539.0,2538.3,6.93958]
[1727043278772,3.93879,2538.9,2538.3,6.93958]
[1727043278982,2.47912004,2538.8,2538.3,6.93958]
[1727043279178,2.47912004,2538.8,2538.2,7.87941]
[1727043279179,6.41799004,2538.8,2538.2,7.87941]
[1727043279391,6.41799004,2538.8,2538.2,3.93969]
[1727043279569,6.41808004,2538.8,2538.0,3.93997]
[1727043279770,6.41808004,2538.8,2538.2,3.9397]
[1727043280195,3.93905,2538.7,2538.2,3.9397]
[1727043280374,3.93919,2538.6,2538.0,4.333977]
[1727043280719,0.13262004,2538.5,2538.0,8.274007]
[1727043280900,0.13262004,2538.5,2538.1,3.0]
[1727043281101,2.3465,2538.4,2538.1,3.0]
[1727043281423,2.3465,2538.4,2537.7,0.47612782]
[1727043281572,0.13262004,2538.3,2538.0,3.94001]
[1727043281772,0.13262004,2538.3,2537.9,3.94011]
[1727043283803,3.94051,2537.8,2537.3,3.94105]
[1727043283969,3.26570528,2538.2,2537.1,3.9550958]
[1727043283970,2.3465,2537.7,2537.1,3.9550958]
[1727043284319,4.07335004,2537.6,2537.1,4.35060538]
[1727043284617,0.13262004,2537.6,2537.1,4.35060538]
[1727043285210,3.94097,2537.5,2537.1,0.0137158]
[1727043285519,2.3465,2537.3,2537.1,0.0137158]
[1727043285685,0.13137768,2537.4,2537.2,3.94124]
[1727043285887,2.3465,2537.6,2537.1,3.9551158]
[1727043286090,2.3465,2537.6,2537.1,7.8965158]
[1727043286286,2.3465,2537.6,2537.1,4.74476738]
[1727043286692,2.3465,2537.6,2537.3,3.94118]
[1727043287008,2.3465,2537.6,2537.1,4.74476738]
[1727043287188,2.3465,2537.6,2537.2,3.94121]
[1727043287388,2.3465,2537.6,2537.1,8.68618738]
[1727043287903,2.3465,2537.6,2537.1,4.74476738]
[1727043288222,6.28731,2537.6,2537.1,0.0137158]
[1727043288428,6.28605,2537.2,2537.1,0.0137158]
[1727043288636,2.3447,2537.2,2537.1,0.0137158]
[1727043289897,2.3447,2537.6,2537.1,3.9551958]
[1727043290134,6.28549,2537.6,2537.1,3.9551958]
[1727043290495,2.3447,2537.2,2537.1,0.0137158]
[1727043290907,2.47045618,2537.2,2537.1,0.0137158]
[1727043291729,0.12575618,2537.2,2537.1,3.9552158]
[1727043291932,2.3447,2537.5,2537.1,0.40923738]
[1727043292134,3.93845,2539.1,2537.1,0.40923738]
[1727043292135,2.3447,2538.3,2537.8,3.94042]
[1727043292510,2.3447,2538.3,2537.6,3.94062]
[1727043292906,3.93987,2538.2,2537.6,7.88127]
[1727043293213,3.94018,2538.0,2537.4,3.94093]
[1727043293539,2.3447,2537.9,2537.4,3.94093]
[1727043293707,6.285,2537.9,2537.4,3.94093]
[1727043294720,2.3447,2537.9,2537.5,3.94087]
[1727043295230,2.3447,2537.9,2537.4,3.94093]
[1727043295396,6.28497,2537.9,2537.4,3.94093]
[1727043295591,6.28497,2537.9,2537.3,3.0]
[1727043295592,2.3447,2537.9,2537.3,3.0]
[1727043295807,3.9406,2537.7,2537.1,0.0137158]
[1727043296007,2.3447,2537.3,2537.1,0.0137158]
[1727043296627,6.28589,2537.3,2537.1,0.0137158]
[1727043297312,2.3447,2537.3,2537.1,0.0137158]
[1727043297865,2.3447,2537.3,2537.1,3.9551958]
[1727043298159,2.3447,2537.7,2537.2,3.94135]
[1727043298355,2.3447,2537.7,2537.3,3.94111]
[1727043298662,2.3447,2537.7,2537.4,3.94096]
[1727043299247,3.9402,2538.0,2537.1,0.80339938]
[1727043299248,3.94011,2538.0,2537.5,3.94075]
[1727043299433,3.94011,2538.0,2537.5,7.88155]
[1727043299636,3.94011,2538.0,2537.5,3.94075]
[1727043299809,2.3447,2537.9,2537.2,3.0]
[1727043300143,2.3447,2537.9,2537.1,4.74488938]
[1727043300144,3.9406,2537.7,2537.1,0.0137158]
[1727043300345,2.3447,2537.9,2537.1,0.0137158]
[1727043300346,3.94135,2537.2,2537.1,0.0137158]
[1727043300554,6.28605,2537.2,2537.1,0.0137158]
[1727043301056,2.3447,2537.2,2537.1,0.0137158]
[1727043301855,3.941,2537.5,2537.4,3.94104]
[1727043301856,2.2601,2537.5,2537.4,3.94104]
[1727043302067,2.2601,2537.8,2537.5,3.94087]
[1727043302210,2.2601,2537.8,2537.4,3.94102]
[1727043302410,2.2601,2537.8,2537.3,3.94108]
[1727043303167,3.94058,2537.7,2537.2,6.94135]
[1727043303399,5.52580528,2537.8,2537.1,0.0137158]
[1727043303567,6.20145,2537.2,2537.1,0.0137158]
[1727043304797,2.2601,2537.2,2537.1,0.0137158]
[1727043305484,2.24749602,2537.2,2537.1,0.0137158]
[1727043305702,2.37280896,2537.2,2537.1,0.0137158]
[1727043306190,6.31415896,2537.2,2537.1,0.0137158]
[1727043306498,2.37280896,2537.2,2537.1,0.0137158]
[1727043307357,2.37280896,2537.2,2537.1,0.0082716]
[1727043308510,0.12531294,2537.2,2537.1,3.9497716]
[1727043308790,2.2601,2538.2,2537.8,3.94027]
[1727043309006,2.2601,2538.2,2537.7,3.94044]
[1727043309299,2.2601,2538.2,2537.9,3.94018]
[1727043309465,2.2601,2538.2,2538.1,3.93995]
[1727043309895,3.93951,2538.4,2537.5,5.2772]
[1727043310195,3.93949,2538.4,2537.8,3.94032]
[1727043310394,3.93949,2538.4,2537.7,3.94047]
[1727043310595,3.93949,2538.4,2537.9,3.94018]
[1727043310756,6.19936,2538.6,2537.9,3.94018]
[1727043310757,6.19936,2538.6,2537.9,4.334198]
[1727043310966,3.93936,2538.5,2537.9,4.334198]
[1727043311483,3.93957,2538.4,2537.7,3.94048]
[1727043311684,2.2601,2538.3,2537.7,3.94048]
[1727043311901,2.2601,2538.3,2537.8,3.94028]
[1727043312110,2.2601,2538.3,2537.7,3.94048]
[1727043312111,2.2601,2538.3,2537.9,3.94023]
[1727043312483,2.2601,2538.3,2537.9,3.94016]
[1727043313799,2.2601,2538.3,2538.0,3.93995]
[1727043314206,2.2601,2538.3,2537.9,3.94016]
[1727043314207,2.2601,2538.3,2538.1,3.93994]
[1727043314416,2.2601,2538.7,2538.1,4.72795]
[1727043314562,6.19913,2538.7,2538.1,3.93994]
[1727043314761,2.2601,2538.7,2538.1,3.93994]
[1727043314998,2.2601,2538.7,2538.3,3.93961]
[1727043315267,6.19921,2538.7,2538.1,3.93994]
[1727043315495,2.2601,2538.7,2538.1,3.93987]
[1727043315697,2.2601,2538.7,2538.3,3.93962]
[1727043316472,2.2601,2539.0,2538.6,3.93917]
[1727043316887,2.2601,2539.0,2538.8,3.93877]
[1727043317421,2.2601,2539.0,2538.6,3.93907]
[1727043318092,2.2601,2539.0,2538.6,7.87816]
[1727043318506,2.2601,2539.0,2538.7,3.93896]
[1727043318696,2.2101,2539.0,2538.8,3.93883]
[1727043318885,1.0839136,2539.4,2539.1,3.93836]
[1727043319228,1.0839136,2539.4,2538.8,0.78779]
[1727043319229,0.0293848,2539.6,2539.3,3.93797]
[1727043319579,0.0293848,2539.6,2538.9,3.93858]
[1727043319783,0.0293848,2539.6,2538.9,3.93857]
[1727043320086,0.0293848,2539.6,2539.2,3.93815]
[1727043320626,0.12080071,2539.5,2538.8,3.0]
[1727043320819,3.9385,2539.1,2538.5,3.9393]
[1727043321024,3.0,2539.5,2538.6,3.93914]
[1727043321225,0.12080071,2539.0,2538.6,3.93914]
[1727043321399,3.93826,2539.2,2538.6,3.93914]
[1727043321599,0.12080071,2538.9,2538.6,3.93914]
[1727043321793,2.3739,2539.1,2538.7,3.93894]
[1727043322002,0.12361787,2538.8,2538.7,4.726828]
[1727043322197,2.3739,2539.5,2539.2,3.93809]
[1727043322395,0.0293848,2539.6,2539.4,3.93793]
[1727043322630,0.0293848,2539.6,2539.5,3.93778]
[1727043322934,0.0293848,2539.6,2539.2,3.93815]
[1727043323102,0.0293848,2539.6,2539.4,3.93779]
[1727043323284,0.0293848,2539.6,2539.3,0.393815]
[1727043323485,0.0293848,2539.6,2539.2,3.93823]
[1727043323732,0.0293848,2539.6,2539.0,3.93847]
[1727043323915,0.0293848,2539.6,2539.1,3.9383]
[1727043324488,0.0293848,2539.6,2539.2,3.93823]
[1727043324684,2.3739,2539.5,2538.6,3.93902]
[1727043324999,2.3739,2539.5,2538.8,3.93878]
[1727043325000,3.93795,2539.4,2538.8,3.93878]
[1727043325200,6.31172,2539.5,2539.0,3.93842]
[1727043325414,2.3739,2539.5,2539.2,3.93819]
[1727043325586,2.3739,2539.5,2539.2,4.725851]
[1727043325786,2.3739,2539.5,2539.2,7.87631]
[1727043326091,2.3739,2539.5,2539.2,3.93815]
[1727043326832,0.0293848,2539.6,2539.3,3.93807]
[1727043327014,0.0293848,2539.6,2539.2,3.93813]
[1727043327416,0.0293848,2539.6,2539.4,3.93789]
[1727043329636,0.0293848,2539.6,2539.5,3.93778]
[1727043329827,0.0293848,2539.6,2539.5,6.46973665]
[1727043330028,0.0293848,2539.6,2539.5,6.39098]
[1727043330491,0.0293848,2539.6,2539.4,3.93789]
[1727043330687,0.14893957,2539.6,2539.2,3.93814]
[1727043330913,0.0293848,2539.6,2539.2,3.93813]
[1727043331186,0.11955477,2539.5,2539.4,3.93793]
[1727043331420,0.0293848,2539.6,2539.4,3.93793]
[1727043331421,0.0293848,2539.6,2539.5,3.93778]
[1727043331632,0.0293848,2539.6,2539.5,7.01652496]
[1727043331832,0.0293848,2539.6,2539.5,6.93778]
[1727043332186,0.0293848,2539.6,2539.5,7.56652232]
[1727043332429,0.0293848,2539.6,2539.5,9.35609555]
[1727043332593,0.0293848,2539.6,2539.5,11.56075323]
[1727043335030,0.0376564,2540.3,2540.2,9.77009]
[1727043335298,0.0376564,2540.3,2540.2,9.22009]
[1727043336231,0.0376564,2540.3,2540.2,9.77009]
[1727043336912,0.0376564,2540.3,2540.2,9.22009]
[1727043337335,0.0376564,2540.3,2539.9,3.93706]
[1727043337570,0.15804347,2540.3,2539.9,3.93706]
[1727043337773,0.15804347,2540.3,2539.7,2.2834]
[1727043337932,0.15804347,2540.3,2539.9,3.93707]
[1727043338133,0.0376564,2540.3,2539.9,3.93707]
[1727043338355,0.12038707,2540.2,2540.0,3.937]
[1727043338633,0.12038707,2540.2,2540.1,3.93685]
[1727043338862,0.0376564,2540.3,2540.2,3.93669]
[1727043339063,0.0376564,2540.3,2540.2,4.724044]
[1727043339333,0.0376564,2540.3,2540.2,7.557444]
[1727043339862,0.0376564,2540.3,2540.2,10.557444]
[1727043340264,0.0376564,2540.3,2540.2,10.007444]
[1727043340966,0.0376564,2540.3,2539.8,0.22834]
[1727043340967,0.0376564,2540.3,2539.9,6.93709]
[1727043341291,0.0376564,2540.3,2539.6,2.2834]
[1727043341582,0.0376564,2540.3,2539.8,3.9372]
[1727043341746,3.9743064,2540.3,2539.8,3.9372]
[1727043341953,3.93672,2540.2,2539.6,6.22088]
[1727043342254,3.93688,2540.1,2539.6,6.842968]
[1727043342459,3.93672,2540.2,2539.6,6.842968]
[1727043342672,3.93672,2540.2,2539.6,10.15842]
[1727043342870,7.8735,2540.2,2539.6,3.93748]
[1727043343236,3.93672,2540.2,2539.6,3.93748]
[1727043343431,0.0376564,2540.3,2539.5,3.0]
[1727043343637,2.342,2540.1,2539.6,3.93761]
[1727043343999,3.93719,2539.9,2539.3,9.22148]
[1727043344273,3.93708,2540.0,2539.2,3.93816]
[1727043344274,2.342,2539.7,2539.2,3.93816]
[1727043344458,2.342,2540.0,2539.5,3.93767]
[1727043344860,2.342,2540.0,2539.5,7.87535]
[1727043345061,0.0376564,2540.3,2539.2,0.622156]
[1727043345288,0.0376564,2540.3,2538.9,7.20430528]
[1727043345289,2.3796564,2540.3,2539.9,3.93713]
[1727043345448,2.3796564,2540.3,2539.5,2.2834]
[1727043345638,3.93685,2540.1,2539.4,3.93782]
[1727043346136,3.93685,2540.1,2539.5,3.93767]
[1727043346577,3.93701,2540.0,2539.4,3.0]
[1727043346762,3.93701,2540.0,2539.4,3.93784]
[1727043346967,7.87415,2540.0,2539.4,3.93784]
[1727043347166,3.93717,2539.9,2539.4,3.93784]
[1727043347347,3.93701,2540.0,2539.4,9.191631]
[1727043347679,3.93701,2540.0,2539.4,5.253781]
[1727043347854,3.93741,2539.8,2539.4,3.0]
[1727043348040,3.93766,2539.6,2539.1,3.93838]
[1727043348242,2.3483,2539.7,2539.2,3.93816]
[1727043348449,3.93708,2540.0,2539.4,3.93784]
[1727043348634,7.87423,2540.0,2539.4,3.93784]
[1727043349075,3.93708,2540.0,2539.2,3.93811]
[1727043349375,3.93708,2540.0,2539.0,2.3983]
[1727043349376,3.93708,2540.0,2539.5,3.93775]
[1727043349534,3.93708,2540.0,2539.4,3.93782]
[1727043349969,3.93717,2539.9,2539.4,3.93782]
[1727043350742,0.12013304,2539.8,2539.4,3.93782]
[1727043350937,3.93754,2539.7,2539.3,0.393811]
[1727043351142,3.93771,2539.6,2539.0,6.33673]
[1727043351385,3.93741,2539.8,2539.0,2.3983]
[1727043351547,0.12013304,2539.5,2539.3,3.938]
[1727043351893,0.12023469,2539.4,2539.2,7.87631]
[1727043352041,3.93726,2539.9,2539.3,3.93809]
[1727043352253,3.93726,2539.9,2539.3,4.725714]
[1727043352476,0.12023469,2539.8,2539.3,4.725714]
[1727043352701,0.12023469,2539.8,2539.4,3.93793]
[1727043353293,4.05754469,2539.8,2539.3,4.725714]
[1727043353505,0.12023469,2539.8,2539.3,4.725714]
[1727043353705,0.12023469,2539.8,2539.4,0.8663864]
[1727043354764,0.12023469,2539.8,2539.4,4.8042264]
[1727043354989,0.12023469,2539.8,2539.4,0.8663864]
[1727043355378,4.05755469,2539.8,2539.4,0.8663864]
[1727043355719,4.05755469,2539.8,2539.6,3.93754]
[1727043355720,0.12023469,2539.8,2539.6,3.93754]
[1727043356028,0.12023469,2539.8,2539.7,7.40997207]
[1727043356225,0.0376564,2540.3,2540.2,3.93669]
[1727043356782,0.0376564,2540.3,2540.2,6.93669]
[1727043358380,0.0376564,2540.3,2540.2,7.48669]
[1727043359229,0.0376564,2540.3,2540.2,3.0]
[1727043359379,0.0376564,2540.3,2540.2,6.93669]
[1727043359576,0.0376564,2540.3,2540.2,3.0]
[1727043360038,0.0376564,2540.3,2540.1,2.3983]
[1727043360185,0.0376564,2540.3,2539.9,3.93706]
[1727043360186,0.0376564,2540.3,2539.9,3.93714]
[1727043360534,0.0376564,2540.3,2539.7,4.331074]
[1727043360683,0.0376564,2540.3,2539.8,0.6729374]
[1727043361023,0.0376564,2540.3,2540.0,3.93687]
[1727043361408,0.0376564,2540.3,2540.1,3.93675]
[1727043361932,0.0376564,2540.3,2540.2,6.29389]
[1727043362418,0.0376564,2540.3,2540.2,9.92261308]
[1727043362721,0.0376564,2540.3,2540.2,9.84389]
[1727043362918,0.0376564,2540.3,2540.2,11.221954]
[1727043363491,0.0376564,2540.3,2540.2,10.671954]
[1727043363697,0.0376564,2540.3,2540.2,3.0]
[1727043363944,0.15850707,2540.3,2540.2,3.93669]
[1727043364237,0.0376564,2540.3,2540.1,7.8735]
[1727043364398,0.0376564,2540.3,2540.1,3.93675]
[1727043364399,0.15850707,2540.3,2540.1,3.93675]
[1727043364595,0.0376564,2540.3,2540.1,3.93675]
[1727043364837,0.12085067,2540.2,2540.1,3.93675]
[1727043365333,0.12085067,2540.2,2540.1,7.87348]
[1727043365535,0.0376564,2540.3,2539.8,3.0]
[1727043365697,3.93756,2539.7,2539.2,2.3572]
[1727043365898,3.93701,2540.0,2539.2,2.986749]
[1727043366097,0.12085067,2539.9,2539.5,3.93768]
[1727043366331,0.12085067,2539.9,2539.7,7.87484]
[1727043366533,6.23797,2540.2,2539.7,3.93737]
[1727043366534,2.3012,2540.2,2539.7,3.93737]
[1727043366696,0.12085067,2539.8,2539.7,3.93747]
[1727043366897,3.93673,2540.2,2539.7,3.93747]
[1727043367098,0.12085067,2540.1,2539.7,3.93747]
[1727043367308,0.12085067,2540.1,2539.9,3.93715]
[1727043367509,0.0376564,2540.3,2539.9,3.93715]
[1727043367747,0.0376564,2540.3,2539.8,3.93727]
[1727043367930,0.12107934,2540.2,2539.8,3.93727]
[1727043368359,3.9742064,2540.3,2539.8,3.93727]